Cogmind - Beta 15 @@@ ROGUE MODE // 2025.07.05 @ 17:33:28 Player: Raix Result: Destroyed by Y-54 Guardian with Gatling Laser Performance ------------- Evolutions (4) 2000 Regions Visited (7) 1400 Robots Destroyed (25) 125 Value Destroyed (346) 346 Prototype IDs (1) 20 Alien Tech Used (0) 0 Bonus (35) 35 TOTAL SCORE: 3926 Bonus ------- Follower Combat Kills 35 Cogmind --------- Core Integrity 0/850 Matter 300/300 Energy 100/100 System Corruption 5% Temperature Cool (12) Movement Core (50) Location -6/Factory Parts ------- > --- POWER (2) -------- (None) > --- PROPULSION (6) --- (None) > --- UTILITY (5) ------ Structural Scanner Signal Interpreter > --- WEAPON (2) ------- (None) > --- INVENTORY (5) ---- Fission Core Advanced Weight Redist. System Improved Terrain Scanner Advanced Terrain Scan Processor Mini Grenade Launcher Peak State ------------ > --- POWER ------------ Deuterium Engine Micro Nuclear Core > --- PROPULSION ------- Improved Flight Unit Xenon Bombardment Thruster Xenon Bombardment Thruster Xenon Bombardment Thruster Xenon Bombardment Thruster Makeshift Flight Unit > --- UTILITY ---------- Large Storage Unit Advanced Weight Redist. System Structural Scanner Improved Sensor Array Signal Interpreter > --- WEAPON ----------- Mini Grenade Launcher Makeshift Spear > --- INVENTORY -------- Light Deuterium Engine Light Nuclear Core Improved Deuterium Engine Flight Unit Improved Flight Unit Improved Flight Unit Medium Storage Unit Advanced Weight Redist. System Advanced Visual Processing Unit Improved Terrain Scanner Advanced Terrain Scanner Improved Terrain Scan Processor Improved Light Cannon Improved Datajack [Rating: 49] Favorites ----------- Power Ion Engine Engine Ion Engine Power Core Light Nuclear Core Propulsion Aluminum Leg Leg Aluminum Leg Flight Unit Xenon Bombardment Thruster Utility Small Storage Unit Device Seismic Detector Storage Small Storage Unit Processor Signal Interpreter Weapon Light Assault Rifle Ballistic Gun Light Assault Rifle Ballistic Cannon Improved Light Cannon Launcher Mini Grenade Launcher Piercing Weapon Makeshift Spear Build | -11 -10 -10 -9 -9 -8 -7 -6 ------- Run | Yrd Mat Min Mat Min Mat Fac Fac Slots Evolved 8 | . . . 2 . 2 2 2 Power 1 | . . . . . 1 . . Propulsion 4 | . . . 1 . 1 1 1 Utility 3 | . . . 1 . . 1 1 Weapon . | . . . . . . . . Parts Attached 46 | 6 . 8 8 . 16 3 5 Power 9 | 1 . 1 . . 4 1 2 Engine 5 | 1 . 1 . . 2 . 1 Core 4 | . . . . . 2 1 1 Reactor . | . . . . . . . . Propulsion 17 | 2 . 2 5 . 5 1 2 Treads . | . . . . . . . . Leg 4 | 2 . 2 . . . . . Wheel . | . . . . . . . . Hover . | . . . . . . . . Flight 13 | . . . 5 . 5 1 2 Utility 11 | 1 . 1 3 . 5 1 . Device 6 | . . 1 2 . 3 . . Storage 3 | 1 . . 1 . 1 . . Processor 2 | . . . . . 1 1 . Hackware . | . . . . . . . . Protection . | . . . . . . . . Artifact . | . . . . . . . . Weapon 9 | 2 . 4 . . 2 . 1 Energy Gun . | . . . . . . . . Energy Cannon . | . . . . . . . . Ballistic Gun 6 | 2 . 3 . . . . 1 Ballistic Cannon 1 | . . . . . 1 . . Launcher 1 | . . . . . 1 . . Special Weapon . | . . . . . . . . Impact Weapon . | . . . . . . . . Slashing Weapon . | . . . . . . . . Piercing Weapon 1 | . . 1 . . . . . Special Melee Weapon . | . . . . . . . . Unidentified Prototypes 1 | . . . 1 . . . . Parts Lost 19 | . . 2 . . 1 . 16 Power 3 | . . 1 . . . . 2 Propulsion 10 | . . . . . 1 . 9 Utility 4 | . . 1 . . . . 3 Weapon 2 | . . . . . . . 2 Highest Loss Streak 16 | . . 1 . . 1 . 16 To Critical Strikes . | . . . . . . . . Average Backups 8 | 2 4 7 7 9 12 14 11 Power 1 | . . 1 1 1 1 2 2 Propulsion 2 | 1 1 2 5 6 3 3 1 Utility 2 | . . 2 1 2 4 5 5 Weapon 1 | . 2 1 . . 1 1 1 Tool/Special . | . . . . . . . . Unused Backups 32 | 3 . 12 1 . 8 1 7 Power 8 | 1 . 4 . . 1 . 2 Propulsion 9 | 2 . 5 1 . 1 . . Utility 10 | . . 1 . . 4 1 4 Weapon 4 | . . 2 . . 2 . . Tool/Special 1 | . . . . . . . 1 Average Slot Usage (%) 91 | . 85 92 97 100 98 99 73 Engine 11 | . 14 13 11 11 6 7 3 Core 2 | . . . . . 11 7 4 Leg 17 | . 28 27 2 . . . . Flight 12 | . . . 30 33 35 38 26 Device 9 | . . 8 19 22 12 14 16 Storage 11 | . 14 14 11 11 9 7 4 Processor 1 | . . . . . 5 7 6 Ballistic Gun 14 | . 28 18 11 11 2 . 2 Launcher 1 | . . . . . 4 7 1 Piercing Weapon 7 | . . 9 11 11 9 7 3 Peak Build Rating 49 | 6 6 14 22 22 39 44 49 Average Rating 17 | 3 6 10 21 22 35 42 32 On Entrance 18 | . 6 6 13 22 22 39 43 Naked Turns . | . . . . . . . . Heaviest Build 44 | 12 12 14 18 18 33 34 44 Greatest Support 46 | 20 20 30 18 18 35 40 46 Greatest Overweight (x) 1 | . . 1 . . 1 . 1 Average Overweight (x) . | . . . . . . . . Largest Inventory Capacity 15 | 8 8 8 10 10 15 15 15 Average Capacity 9 | 6 8 8 9 10 12 15 12 Most Carried 15 | 5 8 8 9 9 15 15 15 Average Carried 8 | 2 4 7 8 9 12 14 11 Final Capacity 15 | 8 8 8 10 10 15 15 5 Final Carried 15 | 1 8 8 9 9 15 15 5 Class Distribution -------------------- 62% | Mutant 27% | Scavenger-Mutant 9% | Sprinter Dominant Class ---------------- Mutant | -10/Materials Mutant | -10/Mines Scavenger-Mutant | -9/Materials Scavenger-Mutant | -9/Mines Mutant | -8/Materials Sprinter | -7/Factory Mutant | -6/Factory Resources | -11 -10 -10 -9 -9 -8 -7 -6 ----------- Run | Yrd Mat Min Mat Min Mat Fac Fac Matter Collected 851 | 220 66 141 57 . 302 50 15 Remotely . | . . . . . . . . Salvage Created 463 | . 82 220 57 . 69 . 35 Parts 45 | . 9 20 1 . 10 . 5 Haulers Intercepted . | . . . . . . . . Recyclers Shooed 2 | . 1 . 1 . . . . Parts Field Recycled . | . . . . . . . . Retrieved Matter . | . . . . . . . . Parts Self-Destructed . | . . . . . . . . Prevented . | . . . . . . . . Kills | -11 -10 -10 -9 -9 -8 -7 -6 ------- Run | Yrd Mat Min Mat Min Mat Fac Fac Combat Hostiles Destroyed 16 | . 2 8 . . 5 . 1 Melee 4 | . . 3 . . . . 1 Guns 7 | . 2 5 . . . . . AOE 5 | . . . . . 5 . . Classes Destroyed 8 | . 2 4 . . 1 . 1 Worker 2 | . . 2 . . . . . Tunneler 3 | . . 1 . . 2 . . Recycler 2 | . . 1 1 . . . . Operator 1 | . . . . . . . 1 Watcher 3 | . 3 . . . . . . Swarmer 12 | . 2 6 . . 3 . 1 Sentry 2 | . . . . . 2 . . Assembled 2 | . . 2 . . . . . Best Kill Streak 5 | . 2 3 1 . 5 . 1 Combat Bots Only 5 | . 2 3 . . 5 . 1 Max Kills in Single Turn 2 | . 1 2 1 . 2 . 1 Gunslinging 1 | . . 1 . . . . . Exploded 2 | . . . . . 2 . . Melee 1 | . . 1 . . . . 1 Uniques/NPCs Destroyed . | . . . . . . . . Combat | -11 -10 -10 -9 -9 -8 -7 -6 -------- Run | Yrd Mat Min Mat Min Mat Fac Fac Hostile Shots Fired 295 | . 19 67 . 1 55 6 147 Missed 95 | . 10 14 . . 21 4 46 Hits 200 | . 9 53 . 1 34 2 101 Melee 3 | . . 2 . . . . 1 Projectile 197 | . 9 51 . 1 34 2 100 Critical Strikes 6 | . . 1 . . 2 . 3 Damage Taken 2656 | . 73 543 . 10 359 11 1660 Core 1106 | . 7 128 . . 109 6 856 Absorbed by Shields . | . . . . . . . . Core Remaining (%) 85 | 100 . 46 . 100 80 99 . Volleys Fired 42 | . 15 16 . . 8 . 3 Largest 2 | . 2 2 . . 1 . 1 Hottest 40 | . 40 40 . . 33 . 33 Shots Fired 72 | . 30 31 . . 8 . 3 Gun 61 | . 30 31 . . . . . Cannon 4 | . . . . . 1 . 3 Launcher 7 | . . . . . 7 . . Special . | . . . . . . . . Kinetic 65 | . 30 31 . . 1 . 3 Thermal . | . . . . . . . . Explosive 7 | . . . . . 7 . . Electromagnetic . | . . . . . . . . Robot Hit Streak 5 | . 4 5 . . 1 . 1 Robot Miss Streak 4 | . 4 3 . . . . 2 Penetration Max . | . . . . . . . . Secondary Targets 2 | . . 2 . . . . . Max Gunslinging Chain 1 | . . 1 . . . . . Shots Hit Robots 47 | . 14 26 2 . 3 . 2 Core Hits 41 | . 8 14 1 . 11 . 7 Critical Kills . | . . . . . . . . Critical Parts Destroyed . | . . . . . . . . Critical Strikes 2 | . . 1 1 . . . . Impale 2 | . . 1 1 . . . . Melee Attacks 20 | . . 13 2 . 2 . 3 Impact . | . . . . . . . . Slashing . | . . . . . . . . Piercing 20 | . . 13 2 . 2 . 3 Sneak Attacks 9 | . . 5 2 . 2 . . Combat Hostiles . | . . . . . . . . Follow-up Attacks . | . . . . . . . . Damage Inflicted 1216 | . 119 504 106 . 397 . 90 Guns 260 | . 114 146 . . . . . Cannons 41 | . . . . . 20 . 21 Explosions 253 | . . . . . 253 . . Melee 616 | . . 358 106 . 124 . 28 Ramming 46 | . 5 . . . . . 41 Kinetic 301 | . 114 146 . . 20 . 21 Thermal . | . . . . . . . . Explosive 253 | . . . . . 253 . . Electromagnetic . | . . . . . . . . Impact . | . . . . . . . . Slashing . | . . . . . . . . Piercing 616 | . . 358 106 . 124 . 28 Highest Corruption 5 | . . . . . . . 5 Average Corruption 4 | . . . . . . . 4 Corruption Purged . | . . . . . . . . Corruption Blocked . | . . . . . . . . Effects 1 | . . . . . . . 1 Data Loss (minor) 1 | . . . . . . . 1 Overload Shots . | . . . . . . . . Overflow Damage 245 | . . 151 30 . 18 . 46 Projectiles . | . . . . . . . . Explosions 64 | . . . . . 18 . 46 Melee 181 | . . 151 30 . . . . Knockbacks . | . . . . . . . . Impact . | . . . . . . . . Kinetic . | . . . . . . . . Secondary . | . . . . . . . . Self-Inflicted Damage 94 | . . . . . . . 94 Shots 1 | . . . . . . . 1 Rammed 14 | . . . . . . . 14 Targets Rammed 16 | . 2 . . . . . 14 Kicked 2 | . 2 . . . . . . Crushed . | . . . . . . . . Highest Temperature 379 | . . . . . 277 379 238 Average Temperature 157 | . . . . . 162 177 111 Received Heat Transfer 525 | . . 9 . 6 81 . 429 Effects 11 | . . . . . 6 5 . Shutdowns 2 | . . . . . . 2 . Interference 8 | . . . . . 6 2 . Damage (minor) 1 | . . . . . . 1 . Siege Activations . | . . . . . . . . Martial Activations . | . . . . . . . . Shielding Activations . | . . . . . . . . Robots Disrupted . | . . . . . . . . Combat Hostiles . | . . . . . . . . Robots Corrupted . | . . . . . . . . Combat Hostiles . | . . . . . . . . Parts Fried . | . . . . . . . . Impact Corruptions . | . . . . . . . . Robots Melted . | . . . . . . . . Combat Hostiles . | . . . . . . . . Parts Melted . | . . . . . . . . Heat Transferred . | . . . . . . . . Parts Sabotaged . | . . . . . . . . Parts Stolen . | . . . . . . . . Parts Stripped . | . . . . . . . . Power Chain Reactions . | . . . . . . . . Alert | -11 -10 -10 -9 -9 -8 -7 -6 ------- Run | Yrd Mat Min Mat Min Mat Fac Fac Maximum Alert Level . | . . . . . . . . Low Security (%) 100 | 100 100 100 100 100 100 100 100 Level 1 . | . . . . . . . . Level 2 . | . . . . . . . . Level 3 . | . . . . . . . . Level 4 . | . . . . . . . . Level 5 . | . . . . . . . . High Security . | . . . . . . . . Max Security . | . . . . . . . . Peak Influence 173 | . 70 70 15 15 173 35 110 Initial 35 | . . . . 1 5 35 16 Average 22 | . 13 9 1 1 72 13 36 Influence Increases 906 | . 101 194 20 15 229 45 302 Destroy 0b10 Robot/C 300 | . 40 140 . . 100 . 20 Destroy 0b10 Robot/NC 55 | . 15 20 5 . 10 . 5 Destroy Leader 76 | . 16 30 . . 30 . . Allied During Kill 4 | . . 4 . . . . . Successful Hack 6 | . . . . . 6 . . Disable Machine 30 | . . . . . . . 30 Destroy Structure 45 | . . . . . 23 . 22 Partial Spotted 45 | . . . 15 . 15 . 15 Lose Combat Pursuer 345 | . 30 . . 15 45 45 210 Influence Decreases 796 | . 101 194 15 5 165 89 227 Entered New Map 77 | . . . . 4 10 44 19 Time Decay 551 | . 101 184 15 1 145 45 60 Lost Part 168 | . . 10 . . 10 . 148 Squads Dispatched 7 | . . . 1 . 5 1 . Investigation 1 | . . . . . 1 . . Extermination 1 | . . . . . . 1 . Reinforcement 4 | . . . 1 . 3 . . Assault . | . . . . . . . . Garrison 1 | . . . . . 1 . . Intercept . | . . . . . . . . Searches Triggered . | . . . . . . . . Construction Impeded . | . . . . . . . . Haulers Reinforced . | . . . . . . . . Active Scanning Responses . | . . . . . . . . Cargo Convoy Interrupts . | . . . . . . . . Stealth | -11 -10 -10 -9 -9 -8 -7 -6 --------- Run | Yrd Mat Min Mat Min Mat Fac Fac Distress Signals 4 | . . . 1 . 1 1 1 Communications Jammed . | . . . . . . . . Distress Signals . | . . . . . . . . Times Spotted 68 | . 9 16 1 2 11 5 24 Peak Tracking Total 15 | . 2 3 2 2 6 6 15 Tactical Retreats 9 | . 1 1 . 1 2 1 3 Traps | -11 -10 -10 -9 -9 -8 -7 -6 ------- Run | Yrd Mat Min Mat Min Mat Fac Fac Traps Triggered . | . . . . . . . . Indirectly . | . . . . . . . . Trap Hack Attempts . | . . . . . . . . Triggered . | . . . . . . . . Disarmed . | . . . . . . . . Reprogrammed . | . . . . . . . . Reused . | . . . . . . . . Traps Extracted . | . . . . . . . . Installed . | . . . . . . . . Triggered . | . . . . . . . . Machines | -11 -10 -10 -9 -9 -8 -7 -6 ---------- Run | Yrd Mat Min Mat Min Mat Fac Fac Machines Disabled 2 | . . . . . . . 2 Max in Single Turn 2 | . . . . . . . 2 Machines Repaired . | . . . . . . . . Machines Dismantled . | . . . . . . . . Machines Sabotaged . | . . . . . . . . Overloaded Fab Kills . | . . . . . . . . Hacking | -11 -10 -10 -9 -9 -8 -7 -6 --------- Run | Yrd Mat Min Mat Min Mat Fac Fac Machines Accessed 2 | . 1 . . . 1 . . Terminals 1 | . 1 . . . . . . Fabricators . | . . . . . . . . Repair Stations . | . . . . . . . . Recycling Units . | . . . . . . . . Scanalyzers . | . . . . . . . . Garrison Access 1 | . . . . . 1 . . Total Hacks 3 | . 1 . . . 2 . . Successful 2 | . . . . . 2 . . Failed 1 | . 1 . . . . . . Catastrophic . | . . . . . . . . Database Lockouts . | . . . . . . . . Manual 5 | . 1 . . . 4 . . Terminals 1 | . 1 . . . . . . Fabricators . | . . . . . . . . Repair Stations . | . . . . . . . . Recycling Units . | . . . . . . . . Scanalyzers . | . . . . . . . . Garrison Access 2 | . . . . . 2 . . Terminal Hacks . | . . . . . . . . Fabricator Hacks . | . . . . . . . . Repair Station Hacks . | . . . . . . . . Recycling Unit Hacks . | . . . . . . . . Scanalyzer . | . . . . . . . . Garrison Access Hacks 2 | . . . . . 2 . . Unlock Access 1 | . . . . . 1 . . Coupler Status 1 | . . . . . 1 . . Unauthorized Hacks . | . . . . . . . . Terminals . | . . . . . . . . Fabricators . | . . . . . . . . Repair Stations . | . . . . . . . . Recycling Units . | . . . . . . . . Scanalyzers . | . . . . . . . . Garrison Access . | . . . . . . . . Data Cores Recovered 1 | . . . . . . . 1 Used . | . . . . . . . . Hacking Detections 1 | . . . . . 1 . . Full Trace Events 1 | . . . . . 1 . . Feedback Events . | . . . . . . . . Feedback Blocked . | . . . . . . . . Robot Schematics Acquired . | . . . . . . . . Robots Built . | . . . . . . . . Authchips . | . . . . . . . . Time . | . . . . . . . . Total Robot Build Rating . | . . . . . . . . Part Schematics Acquired . | . . . . . . . . Parts Built . | . . . . . . . . Authchips . | . . . . . . . . Time . | . . . . . . . . Total Part Build Rating . | . . . . . . . . Parts Repaired . | . . . . . . . . Time . | . . . . . . . . Parts Recycled . | . . . . . . . . Recycled Matter . | . . . . . . . . Retrieved Matter . | . . . . . . . . Retrieved Components . | . . . . . . . . Parts Scanalyzed . | . . . . . . . . Part Schematics Acquired . | . . . . . . . . Parts Damaged . | . . . . . . . . Bothacking | -11 -10 -10 -9 -9 -8 -7 -6 ------------ Run | Yrd Mat Min Mat Min Mat Fac Fac Used RIF Installer . | . . . . . . . . Robots Hacked . | . . . . . . . . Non-combat . | . . . . . . . . Combat . | . . . . . . . . Robot Hacks Applied . | . . . . . . . . Relay Couplers Released . | . . . . . . . . Fabnet Peak Effective % . | . . . . . . . . Robots Rewired . | . . . . . . . . Allies Hacked . | . . . . . . . . Hacks Repelled . | . . . . . . . . Allies | -11 -10 -10 -9 -9 -8 -7 -6 -------- Run | Yrd Mat Min Mat Min Mat Fac Fac Total Allies 3 | . . 3 . . . . . Largest Group 2 | . . 2 . . . . . Highest-Rated Group 49 | . . 49 . . . . . Highest-Rated Ally 31 | . . 31 . . . . . Total Orders . | . . . . . . . . Ally Attacks 9 | . . 9 . . . . . Total Damage 150 | . . 150 . . . . . Kills 2 | . . 2 . . . . . Allies Corrupted . | . . . . . . . . Allies Melted . | . . . . . . . . Intel | -11 -10 -10 -9 -9 -8 -7 -6 ------- Run | Yrd Mat Min Mat Min Mat Fac Fac Active Infowar (turns) 1092 | . . 579 90 28 157 103 135 Sensors 337 | . . . . . 137 103 97 Terrain 250 | . . . 89 28 133 . . Structural 269 | . . . 90 28 20 . 131 Seismic 579 | . . 579 . . . . . Robot Analysis Total . | . . . . . . . . Derelict Logs Recovered 1 | . . 1 . . . . . Drone Launches . | . . . . . . . . Drone Recoveries . | . . . . . . . . Exploration | -11 -10 -10 -9 -9 -8 -7 -6 ------------- Run | Yrd Mat Min Mat Min Mat Fac Fac Turns Passed 2236 | 69 380 1004 94 28 386 140 135 Spaces Moved 2569 | 53 270 702 188 71 658 410 217 Core 87 | 23 . . . . . . 64 Treads . | . . . . . . . . Legs 1002 | 30 270 702 . . . . . Wheels . | . . . . . . . . Hover . | . . . . . . . . Flight 1480 | . . . 188 71 658 410 153 Fastest Speed 27 | 50 120 120 39 39 31 31 27 Average Speed 72 | 89 120 125 39 39 44 31 41 Slowest Speed 190 | 120 120 190 39 39 116 31 112 Overloaded Moves . | . . . . . . . . Propulsion Burnouts . | . . . . . . . . Robots Hopped 3 | . . . . . . 3 . Potential Cave-ins 1 | . . . . . 1 . . Cave-ins Triggered . | . . . . . . . . Exploration Rate (%) 29 | 5 24 87 20 36 44 14 8 Regions Visited 7 Branch Regions 2 Pre-discovered Areas . | . . . . . . . . Known Exits Taken . | . . . . . . . . Unknown Exits Taken 7 | 1 1 1 1 1 1 1 . Scrap Searched 1 | . . 1 . . . . . Spaces Dug . | . . . . . . . . Terrain Destroyed 56 | . . . . . 27 . 29 Melee . | . . . . . . . . Projectile . | . . . . . . . . AOE 56 | . . . . . 27 . 29 Terrain Rammed . | . . . . . . . . Walls Destroyed . | . . . . . . . . Machines Disabled . | . . . . . . . . Actions | -11 -10 -10 -9 -9 -8 -7 -6 --------- Run | Yrd Mat Min Mat Min Mat Fac Fac Total 2880 | 77 301 804 204 70 748 423 253 Wait 36 | 6 8 16 . . 6 . . Move 2556 | 52 269 701 187 70 657 403 217 Hop 3 | . . . . . . 3 . Pick Up 89 | 10 7 25 5 . 31 7 4 Fast Attach . | . . . . . . . . Attach 27 | 6 . 3 3 . 6 3 6 Detach 2 | . . . . . 1 1 . Swap 35 | . . 8 5 . 15 2 5 Drop 54 | 3 . 22 2 . 22 4 1 Fire 42 | . 15 16 . . 8 . 3 Melee 20 | . . 13 2 . 2 . 3 Ram 14 | . . . . . . . 14 Kick 2 | . 2 . . . . . . Crush . | . . . . . . . . Escape Stasis . | . . . . . . . . Rewire . | . . . . . . . . Trap . | . . . . . . . . Miscellaneous . | . . . . . . . . Route ------- -11/Scrapyard -10/Materials -10/Mines (discovered 2 exits: [*Mat] / Sub) -9/Materials -9/Mines -8/Materials (discovered 2 exits: *Fac / Gar) -7/Factory -6/Factory History --------- Turn | Location | Event 15 | -11/Scrapyard | Discovered new exit (range 16) 70 | -11/Scrapyard | Entered Materials 318 | -10/Materials | Build established: Mutant 359 | -10/Materials | Discovered new exit (range 7) 450 | -10/Materials | Entered Mines 552 | -10/Mines | Identified exit to Subcaves 612 | -10/Mines | Assembled infested the area 614 | -10/Mines | A weapon hastily lodged in a ceiling crevice suddenly fell to the ground 885 | -10/Mines | Received a Rocket Launcher from a helpful Derelict 1123 | -10/Mines | Received a Mining Laser from a helpful Derelict 1313 | -10/Mines | Joined a pair of Derelicts in attacking an 0b10 outpost 1336 | -10/Mines | Build established: Scavenger-Mutant 1401 | -10/Mines | Discovered new exit (range 5) 1404 | -10/Mines | Core integrity fell below 50% 1454 | -10/Mines | Entered Materials 1454 | -9/Materials | Evolved 2 slots: Propulsion x1, Utility x1 1540 | -9/Materials | Discovered new exit (range 13) 1548 | -9/Materials | Entered Mines 1571 | -9/Mines | Discovered new exit (range 13) 1576 | -9/Mines | Entered Materials 1576 | -8/Materials | Evolved 2 slots: Power x1, Propulsion x1 1587 | -8/Materials | Garrison activated, responded to threat 1699 | -8/Materials | Met 7R-MNS 1851 | -8/Materials | Discovered new exit (range 12) 1897 | -8/Materials | Identified exit to Garrison 1962 | -8/Materials | Entered Factory 1962 | -7/Factory | Evolved 2 slots: Propulsion x1, Utility x1 1963 | -7/Factory | Caught up to 7R-MNS 2095 | -7/Factory | Discovered new exit (range 11) 2102 | -7/Factory | Entered another Factory area 2102 | -6/Factory | Evolved 2 slots: Propulsion x1, Utility x1 2194 | -6/Factory | Core integrity fell below 50% 2217 | -6/Factory | Core integrity fell below 20% 2237 | -6/Factory | Destroyed by Y-54 Guardian with Gatling Laser Last Messages --------------- 02189_ Deuterium Engine destroyed. 02189_ Slammed into S-27 Virus. 02190_ Imp. Flight Unit destroyed. 02190_ System corrupted by crushing effect (+3). 02190_ Slammed into S-27 Virus. 02192_ Slammed into G-50 Soldier. 02192_ Coil Gun destroyed. 02193_ Slammed into B-48 Gladiator. 02194_ Slammed into G-50 Soldier. 02195_ Imp. Flight Unit destroyed. 02195_ Critical hit (Burn: +37). 02196_ Slammed into G-50 Soldier. 02199_ Imp. Sensor Array destroyed. 02202_ Flight Unit destroyed. 02203_ Mic. Nuclear Core destroyed. 02203_ Lrg. Storage Unit destroyed. 02205_ Imp. Flight Unit destroyed. 02207_ Adv. Weight Redist. System destroyed. 02208_ K-01 Serf collects debris. 02233_ System corrupted: Component data lost. Map ----- +----------------------------------------------------+ | ?###### # !]] ##???????????????????? | | ????????????? # !] ##???????????????????? | | ????????????? # / ##???????????????????? | | ????????????? ######+#########???????????????????? | | ????????????? # #########???????????????????? | | ????????????? # """ ##??????????????????????????? | | ????????????? # """ ##??????????????????????????? | | ?????????????## """ ##??????????????????????????? | | ?????????????## # ??????????????????????????? | | ??????###????## """ # ??????????????????????????? | | ??????###????## """ # ??????????????????????????? | | ??????## ????## """ # ??????????????????????????? | | ??????##T ???## # ??????????????????????????? | | ???????## ???## """ # ??????????????????????????? | | ???????## ??## """ # ??????????????????????????? | | ?????? ## ### """ # ???????????????????? | | ?????? ## ### ####+####???????????????????? | | ?????? # ##/####### ##???????????????????? | | ?????? # ##???????????????????? | | ?????? # " ##???????????????????? | | ?????? # ##???????????????????? | | ?????? # ##+####### ##???????????????????? | | ?????? ### ### #### ####???????????????????? | | ?????? ### ### "" ####Y####???????????????????? | | ????????## ?## "" + ##?????????????????????? | | ????????## ?## """ ####@# ?????????????????????? | | ????????????## """ #### # ?????????????????????? | | ????????????## """ #### # ?????????????????????? | | ????????????## #### # ?????????????????????? | | ????????????## #### # ?????????????????????? | | ????????????## ! #### + ?????????????????????? | | ????????????## #### # ?????????????????????? | | ????????????## #### # ?????????????????????? | | ????????????############# ##?????????????????????? | | ???????????? ########## ?????????????????????? | | ????????????????????????? ???????????????????????? | | ?????????????????????????Y???????????????????????? | | ????????????????????????? ???????????????????????? | | ???????????????????????? ??????????????????????? | | ????????????????????????###??????????????????????? | | ???????????????????????? ??????????????????????? | | ?????????????????????????????????????????????????? | | ?????????????????????????????????????????????????? | | ?????????????????????????????????????????????????? | | ?????????????????????????????????????????????????? | | ?????????????????????????????????????????????????? | | ?????????????????????????????????????????????????? | | ?????????????????????????????????????????????????? | | ?????????????????????????????????????????????????? | | ?????????????????????????????????????????????????? | +----------------------------------------------------+ Best States ------------- Heat Dissipation 37 Energy Generation 24 Energy Capacity 325 Matter Stores 300 Matter Capacity 300 Sight Range 16 Robot Scan Range 15 Terrain Scan Range 16 Terrain Scan Density 210 Additional Mass Support 9 Evasion (%) 64 Item Schematics ----------------- None Robot Schematics ------------------ None Fabricated ------------ Nothing Repaired ---------- Nothing Alien Tech Used ----------------- None Achievements -------------- None Challenges ------------ None Game ------ Seed TeslaChromionShifter Manual? 0 Play Time 00:38:09 Cumulative 17.2 hours Start 2025.07.05 @ 16:42:29 End 2025.07.05 @ 17:33:28 Sessions 1 Manual Loads 0 Difficulty Rogue Special Mode None Game No. 21 Rogue 21 Adventurer 0 Explorer 0 Win Type - Total 0 Types 0/0/0/0/0/0/0/0/0/0 Lore% 12 Gallery% 22 Achievement% 24 Wizard Run 0 Options --------- Layout 1 ASCII 0 Keyboard 0 Movement Numpad Keybinds 0 Fullscreen 2 Font 24/Smallcaps Map View 50x35 Zoom Use 0% Tactical HUD 1 Map Filters NONE Filters NONE Steam 1 RUN: 59fad722-dfab-469d-92cb-2702afeb343e